bitfinex/quotes_SOLUSD_20250212
["timestamp","ask_amount","ask_price","bid_price","bid_amount"]
[1739373929992,43.56036623,194.07,194.01,16.48482604]
[1739373930192,43.56036623,194.07,194.02,41.49926623]
[1739373930193,2.0611,194.07,194.02,41.49926623]
[1739373930531,2.0598,194.19,194.06,1.0]
[1739373930703,2.0598,194.19,194.07,2.081639]
[1739373930907,2.0598,194.19,194.08,1.5439]
[1739373931122,7.2093,194.19,194.08,1.5439]
[1739373931622,2.0602,194.15,194.09,41.49926623]
[1739373931915,2.0602,194.15,194.08,1.5439]
[1739373931916,41.49926623,194.19,194.12,41.49926623]
[1739373932123,0.03,194.19,194.13,41.49926623]
[1739373932721,41.49926623,194.18,194.11,41.49926623]
[1739373933198,41.49926623,194.18,194.08,6.6962]
[1739373933199,41.49926623,194.16,194.09,41.49926623]
[1739373933399,41.49926623,194.16,194.08,1.5439]
[1739373933400,41.49926623,194.14,194.08,43.04316623]
[1739373933600,41.49926623,194.15,194.08,43.04316623]
[1739373933793,41.49926623,194.15,194.01,1.27034269]
[1739373933794,2.0603,194.14,194.02,41.49926623]
[1739373933992,41.49926623,194.09,194.02,41.49926623]
[1739373934324,41.49926623,194.05,194.01,0.063]
[1739373934535,7.2112,194.14,194.01,0.063]
[1739373934904,0.25098,194.13,194.01,0.063]
[1739373935126,0.12549,194.11,194.01,0.063]
[1739373935598,41.49926623,194.03,194.01,0.063]
[1739373935917,41.49926623,194.09,194.02,41.49926623]
[1739373936126,41.49926623,194.15,194.08,41.49926623]
[1739373936297,41.49926623,194.13,194.02,1.08222188]
[1739373936501,6.2737,194.18,194.01,0.18849]
[1739373937199,0.15549,194.19,194.04,0.12549]
[1739373937200,2.06,194.17,194.04,0.12549]
[1739373937404,2.06,194.17,194.05,0.12549]
[1739373937695,2.06,194.17,194.11,41.49926623]
[1739373938200,41.49926623,194.13,194.09,1.5177]
[1739373938702,41.49926623,194.13,194.06,41.49926623]
[1739373938901,2.06,194.17,194.04,41.49926623]
[1739373938902,41.49926623,194.11,194.04,41.49926623]
[1739373939104,41.49926623,194.06,194.01,0.063]
[1739373939310,8.2101,194.17,194.01,0.063]
[1739373939311,7.2101,194.17,194.01,0.063]
[1739373939594,0.03,194.19,194.04,20.0]
[1739373939801,2.0898,194.19,194.06,0.25098]
[1739373940015,2.0898,194.19,194.09,1.5572]
[1739373940822,43.58906623,194.19,194.12,41.49926623]
[1739373941400,41.49926623,194.17,194.1,41.49926623]
[1739373941595,2.0898,194.19,194.09,1.5572]
[1739373941596,43.58906623,194.19,194.12,41.49926623]
[1739373942324,0.03,194.19,194.12,1.08157943]
[1739373942498,0.03,194.19,194.13,41.49926623]
[1739373942921,41.49926623,194.16,194.09,6.7093]
[1739373943124,2.0898,194.19,194.11,41.49926623]
[1739373943322,41.49926623,194.15,194.09,1.5572]
[1739373943806,41.49926623,194.11,194.05,6.0713]
[1739373944013,41.49926623,194.1,194.03,41.49926623]
[1739373944243,41.49926623,194.07,194.02,1.5005]
[1739373944444,41.49926623,194.06,194.05,0.063]
[1739373945728,41.49926623,194.06,194.01,0.063]
[1739373945729,41.62475623,194.06,194.01,0.063]
[1739373945928,41.49926623,194.02,194.01,0.063]
[1739373946138,48.71346623,194.06,194.01,0.063]
[1739373946423,2.0612,194.06,194.01,0.063]
[1739373946802,0.12549,194.05,194.01,0.063]
[1739373947003,13.66282853,194.05,194.01,0.063]
[1739373947304,20.0,194.03,193.89,1.6154]
[1739373947635,41.49926623,193.95,193.89,1.6154]
[1739373948148,41.49926623,193.95,193.89,43.11466623]
[1739373948435,2.0618,194.0,193.94,41.49926623]
[1739373948929,2.0618,194.0,193.9,41.49926623]
[1739373948930,41.49926623,193.97,193.9,41.49926623]
[1739373949135,7.2164,194.0,193.89,1.6154]
[1739373949299,41.49926623,193.95,193.89,43.11466623]
[1739373949504,41.49926623,193.96,193.89,43.11466623]
[1739373949803,41.49926623,193.96,193.9,41.49926623]
[1739373950009,5.1546,194.0,193.89,1.6154]
[1739373950010,2.0622,193.97,193.91,41.49926623]
[1739373950204,43.56146623,193.97,193.9,41.49926623]
[1739373950431,41.49926623,193.94,193.89,1.6154]
[1739373950926,41.49926623,193.91,193.84,41.49926623]
[1739373951339,20.0,193.92,193.83,14.79851661]
[1739373951637,41.49926623,193.88,193.83,14.79851661]
[1739373951924,0.12549,193.94,193.83,14.79851661]
[1739373951925,43.56256623,193.87,193.83,14.79851661]
[1739373952299,41.49926623,193.86,193.81,0.063]
[1739373952518,2.0633,193.87,193.81,0.063]
[1739373952519,41.49926623,193.84,193.81,0.063]
[1739373952724,2.0633,193.87,193.81,0.063]
[1739373953120,2.0633,193.87,193.84,41.49926623]
[1739373953439,2.0633,193.87,193.82,41.49926623]
[1739373953599,2.0633,193.87,193.81,0.063]
[1739373953600,2.0633,193.87,193.83,41.49926623]
[1739373953801,1.0,194.01,193.81,0.063]
[1739373953802,2.0624,193.94,193.86,41.49926623]
[1739373954004,2.0622,193.96,193.9,41.49926623]
[1739373954255,22.0622,193.96,193.83,5.1591]
[1739373954423,27.2179,193.96,193.83,5.1591]
[1739373954629,0.12549,193.95,193.81,5.2226]
[1739373954827,27.2179,193.96,193.81,5.2226]
[1739373955335,41.49926623,193.92,193.86,41.49926623]
[1739373955509,41.49926623,193.93,193.86,41.49926623]
[1739373955838,43.56196623,193.92,193.85,41.49926623]
[1739373956211,41.49926623,193.89,193.82,41.49926623]
[1739373956414,2.0627,193.92,193.86,41.49926623]
[1739373956732,41.49926623,193.9,193.84,41.49926623]
[1739373957034,2.0627,193.92,193.81,0.063]
[1739373957035,41.49926623,193.87,193.81,0.063]
[1739373957238,41.49926623,193.85,193.81,0.063]
[1739373957535,41.49926623,193.89,193.82,41.49926623]
[1739373957720,43.56236623,193.88,193.82,41.49926623]
[1739373958037,2.0631,193.88,193.83,41.49926623]
[1739373958615,2.0631,193.88,193.85,41.49926623]
[1739373959022,41.49926623,193.94,193.87,41.49926623]
[1739373959219,17.5266,193.99,193.81,0.063]
[1739373959220,1.37647,193.95,193.81,0.063]
[1739373959424,13.66282853,193.93,193.81,0.063]
[1739373959624,13.53733853,193.9,193.81,0.063]
[1739373959816,13.66282853,193.86,193.81,0.063]
[1739373960023,13.66282853,193.86,193.69,14.80921304]
[1739373960024,0.12549,193.78,193.69,14.80921304]
[1739373960223,41.49926623,193.7,193.62,0.063]
[1739373960452,41.49926623,193.65,193.62,0.063]
[1739373960654,41.49926623,193.63,193.62,0.063]
[1739373961020,41.49926623,193.63,193.62,0.0001]
[1739373961254,41.49926623,193.63,193.61,0.0001]
[1739373961462,54.91111476,193.62,193.61,0.0001]
[1739373961749,57.22799476,193.62,193.61,0.0001]
[1739373961932,2.0659,193.62,193.61,0.0001]
[1739373962136,43.56516623,193.62,193.61,0.0001]
[1739373962327,43.56516623,193.62,193.46,1.08514581]
[1739373962328,20.0,193.59,193.48,41.49926623]
[1739373962661,41.49926623,193.53,193.46,41.49926623]
[1739373962952,20.0,193.59,193.42,6.7847]
[1739373962953,41.49926623,193.49,193.42,6.7847]
[1739373963152,41.49926623,193.47,193.42,0.063]
[1739373963351,41.49926623,193.43,193.42,0.063]
[1739373963534,41.49926623,193.44,193.42,0.063]
[1739373963948,41.49926623,193.43,193.42,0.063]
[1739373964350,41.49926623,193.45,193.42,0.063]
[1739373964553,41.62475623,193.45,193.42,0.063]
[1739373964851,41.49926623,193.44,193.42,0.063]
[1739373965025,41.49926623,193.45,193.42,0.063]
[1739373965223,2.0673,193.48,193.42,0.063]
[1739373965441,0.12549,193.47,193.42,0.063]
[1739373965756,7.2324,193.57,193.42,0.063]
[1739373966234,41.49926623,193.47,193.42,0.063]
[1739373966428,41.49926623,193.46,193.42,0.063]
[1739373966733,43.56666623,193.48,193.42,0.063]
[1739373967130,2.0666,193.55,193.47,41.49926623]
[1739373967336,2.0664,193.57,193.5,41.49926623]
[1739373967539,2.0664,193.57,193.44,0.12549]
[1739373967540,15.84337859,193.58,193.53,41.49926623]
[1739373967734,15.84337859,193.58,193.45,2.08519333]
[1739373967735,15.84337859,193.58,193.52,41.49926623]
[1739373968030,17.90977859,193.58,193.44,1.6574]
[1739373968232,13.66282853,193.57,193.44,1.6574]
[1739373968455,13.66282853,193.57,193.41,0.063]
[1739373968456,20.0,193.54,193.41,0.063]
[1739373968646,0.12549,193.52,193.42,0.063]
[1739373968947,41.49926623,193.43,193.42,0.063]
[1739373969158,41.49926623,193.44,193.42,0.063]
[1739373969454,41.49926623,193.47,193.42,0.063]
[1739373969650,13.66282853,193.5,193.42,0.063]
[1739373969857,13.66282853,193.46,193.42,0.063]
[1739373970037,13.66282853,193.42,193.3,0.063]
[1739373970373,13.66282853,193.38,193.3,0.063]
[1739373970529,0.12549,193.38,193.3,0.063]
[1739373970735,41.49926623,193.36,193.3,0.063]
[1739373970934,41.49926623,193.38,193.31,41.49926623]
[1739373971152,41.49926623,193.39,193.32,41.49926623]
[1739373971354,41.49926623,193.33,193.3,0.063]
[1739373971662,41.49926623,193.31,193.3,0.063]
[1739373971865,0.12549,193.37,193.25,41.49926623]
[1739373972041,41.49926623,193.31,193.24,41.49926623]
[1739373972232,41.49926623,193.29,193.22,41.49926623]
[1739373972437,41.49926623,193.31,193.24,41.49926623]
[1739373972659,41.49926623,193.32,193.25,41.49926623]
[1739373972850,41.49926623,193.35,193.28,41.49926623]
[1739373973054,0.95067271,193.39,193.24,20.0]
[1739373973261,2.0684,193.38,193.33,41.49926623]
[1739373973744,43.56766623,193.38,193.31,41.49926623]
[1739373974364,43.56766623,193.38,193.23,0.12549]
[1739373974365,41.49926623,193.32,193.26,41.49926623]
[1739373974671,41.49926623,193.29,193.22,41.49926623]
[1739373974864,41.49926623,193.26,193.21,0.063]
[1739373975955,41.49926623,193.3,193.23,41.49926623]
[1739373976349,41.49926623,193.26,193.21,0.063]
[1739373976551,41.49926623,193.27,193.21,0.063]
[1739373976750,41.49926623,193.27,193.21,41.56226623]
[1739373976946,2.0694,193.29,193.23,41.49926623]
[1739373977147,2.0694,193.29,193.21,0.063]
[1739373977148,43.56866623,193.29,193.22,41.49926623]
[1739373977339,2.0694,193.29,193.23,41.49926623]
[1739373977549,41.49926623,193.28,193.21,41.56226623]
[1739373977942,2.19509,193.27,193.21,41.56226623]
[1739373978144,41.49926623,193.22,193.21,0.063]
[1739373978552,41.49926623,193.23,193.21,0.063]
[1739373978870,41.49926623,193.26,193.21,0.063]
[1739373979066,0.12549,193.25,193.21,0.063]
[1739373980166,20.0,193.19,193.11,41.49926623]
[1739373980354,41.49926623,193.14,193.1,0.063]
[1739373980562,0.25098,193.18,193.1,0.063]
[1739373980563,41.49926623,193.13,193.1,0.063]
[1739373980960,41.49926623,193.14,193.1,0.063]
[1739373981159,0.12549,193.15,193.1,0.063]
[1739373981160,41.49926623,193.12,193.1,0.063]
[1739373981468,20.0,193.19,193.1,0.063]
[1739373981650,41.49926623,193.17,193.11,41.49926623]
[1739373981852,13.41184853,193.18,193.1,0.063]
[1739373982041,2.0708,193.16,193.1,0.063]
[1739373982363,41.49926623,193.13,193.1,0.063]
[1739373982567,41.49926623,193.12,193.1,0.063]
[1739373982771,33.53733853,193.15,193.1,0.063]
[1739373982772,41.49926623,193.11,193.1,0.063]
[1739373982977,41.75024623,193.11,193.1,0.063]
[1739373983269,55.28758476,193.11,193.1,0.063]
[1739373983485,41.75024623,193.11,193.1,0.063]
[1739373983667,41.62475623,193.11,193.1,0.063]
[1739373983970,55.28758476,193.11,193.1,0.063]
[1739373984292,2.19679,193.11,193.1,0.063]
[1739373984443,2.0713,193.11,193.1,0.063]
[1739373984841,43.69605623,193.11,193.1,0.063]
[1739373985585,43.56976623,193.19,193.1,41.56226623]
[1739373985772,41.49926623,193.22,193.15,41.49926623]
[1739373985980,41.49926623,193.23,193.16,41.49926623]
[1739373986279,2.0701,193.22,193.16,41.49926623]
[1739373986460,0.95067271,193.25,193.11,6.6814]
[1739373986670,2.0694,193.29,193.23,41.49926623]
[1739373986861,2.0694,193.29,193.2,41.49926623]
[1739373986862,41.49926623,193.27,193.2,41.49926623]
[1739373987057,41.49926623,193.26,193.19,41.49926623]
[1739373987288,13.41184853,193.28,193.11,20.71418741]
[1739373987497,0.12549,193.27,193.11,19.6273]
[1739373987655,0.25098,193.25,193.11,19.6273]
[1739373987860,7.2429,193.29,193.11,19.6273]
[1739373988189,0.063,193.3,193.16,1.0]
[1739373988489,0.063,193.3,193.26,41.49926623]
[1739373988648,0.063,193.3,193.25,41.49926623]
[1739373988855,0.063,193.3,193.29,41.49926623]
[1739373989075,0.063,193.3,193.21,7.78529128]
[1739373989277,0.063,193.3,193.21,6.5735]
[1739373989655,0.063,193.3,193.22,1.08647995]
[1739373990261,0.063,193.3,193.28,41.49926623]
[1739373990465,0.063,193.3,193.29,41.49926623]
[1739373990680,0.063,193.3,193.29,82.99853246]
[1739373990875,2.0682,193.41,193.36,41.49926623]
[1739373991097,2.0682,193.41,193.35,41.49926623]
[1739373991801,41.49926623,193.46,193.39,41.49926623]
[1739373991984,7.2354,193.49,193.37,41.49926623]
[1739373991985,41.49926623,193.44,193.37,41.49926623]
[1739373992299,2.0681,193.42,193.3,6.25911862]
[1739373992499,5.1682,193.49,193.33,20.0]
[1739373992500,2.0673,193.48,193.33,20.0]
[1739373992673,0.25098,193.43,193.3,5.1732]
[1739373993167,0.12549,193.43,193.3,5.1732]
[1739373993496,41.49926623,193.44,193.37,41.49926623]
[1739373993699,2.0678,193.44,193.33,5.1724]
[1739373993889,2.0678,193.44,193.39,41.49926623]
[1739373994088,2.0678,193.44,193.38,41.49926623]
[1739373994271,41.49926623,193.48,193.41,41.49926623]
[1739373994471,43.56646623,193.49,193.42,41.49926623]
[1739373994867,2.1302,193.5,193.47,41.49926623]
[1739373995086,2.1302,193.5,193.4,41.49926623]
[1739373995087,0.063,193.5,193.48,41.49926623]
[1739373995299,0.063,193.5,193.39,1.621]
[1739373995508,41.49926623,193.49,193.42,41.49926623]
[1739373995672,43.56656623,193.49,193.42,41.49926623]
[1739373995872,41.49926623,193.48,193.41,41.49926623]
[1739373996101,41.49926623,193.48,193.38,41.49926623]
[1739373996102,41.49926623,193.45,193.38,41.49926623]
[1739373996276,41.49926623,193.48,193.33,0.12549]
[1739373996481,43.56656623,193.49,193.42,41.49926623]
[1739373996676,41.62475623,193.48,193.41,41.49926623]
[1739373996904,13.66282853,193.47,193.35,20.0]
[1739373997204,41.49926623,193.44,193.37,41.49926623]
[1739373997366,41.49926623,193.48,193.33,1.21137451]
[1739373997566,0.063,193.5,193.45,41.49926623]
[1739373997867,41.49926623,193.46,193.36,1.0854613]
[1739373998076,41.49926623,193.44,193.35,25.1719]
[1739373998279,41.49926623,193.44,193.38,41.49926623]
[1739373998508,41.49926623,193.46,193.39,41.49926623]
[1739373998801,41.49926623,193.44,193.38,41.49926623]
[1739373999010,41.49926623,193.41,193.34,41.49926623]
[1739373999576,41.49926623,193.4,193.33,41.49926623]
[1739373999878,2.0683,193.39,193.33,41.49926623]
[1739374000294,2.0683,193.39,193.34,41.49926623]
[1739374000707,2.0683,193.39,193.33,41.49926623]
[1739374000876,2.0683,193.39,193.31,1.6636]
[1739374000877,43.56756623,193.39,193.32,41.49926623]
[1739374001082,2.0683,193.39,193.33,41.49926623]
[1739374001831,2.0683,193.39,193.34,41.49926623]
[1739374001978,2.0683,193.39,193.31,1.6636]
[1739374001979,2.0681,193.42,193.31,6.8365]
[1739374002401,20.0,193.41,193.31,6.8365]
[1739374003010,22.0682,193.41,193.31,6.8365]
[1739374003308,22.0682,193.41,193.27,0.12549]
[1739374003309,41.49926623,193.36,193.3,41.49926623]
[1739374003488,41.49926623,193.36,193.29,41.49926623]
[1739374003693,41.49926623,193.37,193.3,41.49926623]
[1739374004094,41.49926623,193.36,193.29,41.49926623]
[1739374004294,2.0687,193.35,193.29,41.49926623]
[1739374004612,41.49926623,193.37,193.3,41.49926623]
[1739374004812,41.49926623,193.4,193.33,41.49926623]
[1739374005016,2.0682,193.4,193.34,41.49926623]
[1739374005322,43.56726623,193.42,193.35,41.49926623]
[1739374005488,20.0,193.41,193.29,0.03]
[1739374006416,2.0682,193.4,193.35,41.49926623]
[1739374006607,2.0682,193.4,193.34,41.49926623]
[1739374006995,61.49926623,193.41,193.32,5.1726]
[1739374006996,0.063,193.43,193.32,5.1726]
[1739374007202,0.063,193.43,193.34,41.49926623]
[1739374007398,0.18849,193.43,193.35,41.49926623]
[1739374007593,41.49926623,193.42,193.35,41.49926623]
[1739374007788,41.49926623,193.42,193.36,41.49926623]
[1739374008428,2.0681,193.41,193.35,41.49926623]
[1739374008632,2.0681,193.41,193.37,41.49926623]
[1739374008918,0.063,193.43,193.4,41.49926623]
[1739374009097,0.063,193.43,193.41,41.49926623]
[1739374009304,0.063,193.43,193.39,41.49926623]
[1739374010122,0.063,193.43,193.4,41.49926623]
[1739374010290,0.063,193.43,193.38,41.49926623]
[1739374010497,41.49926623,193.4,193.34,41.49926623]
[1739374010698,41.49926623,193.42,193.35,41.49926623]
[1739374010907,0.063,193.43,193.37,41.49926623]
[1739374011095,0.063,193.43,193.39,41.49926623]
[1739374011420,41.56226623,193.43,193.36,41.49926623]
[1739374011842,0.063,193.43,193.39,41.49926623]
[1739374011992,0.063,193.43,193.32,0.12549]
[1739374011993,0.063,193.43,193.41,41.49926623]
[1739374012193,0.063,193.43,193.33,18.1037]
[1739374012395,0.063,193.43,193.38,41.49926623]
[1739374013137,41.49926623,193.4,193.33,41.49926623]
[1739374013325,41.49926623,193.42,193.35,41.49926623]
[1739374013517,0.063,193.43,193.34,41.49926623]
[1739374013518,41.49926623,193.41,193.34,41.49926623]
[1739374013831,41.49926623,193.4,193.33,41.49926623]
[1739374014009,41.49926623,193.39,193.32,41.49926623]
[1739374014206,41.49926623,193.34,193.29,0.03]
[1739374014407,41.49926623,193.32,193.29,0.03]
[1739374014632,0.12549,193.38,193.29,0.03]
[1739374014633,41.49926623,193.31,193.29,0.03]
[1739374015132,2.0693,193.3,193.29,0.03]
[1739374015298,2.069,193.33,193.29,0.03]
[1739374015705,41.49926623,193.32,193.29,0.03]
[1739374015905,41.49926623,193.3,193.29,0.03]
[1739374016136,55.16209476,193.3,193.29,0.03]
[1739374016513,0.12549,193.27,193.17,41.49926623]
[1739374016865,0.12549,193.27,193.16,41.49926623]
[1739374016866,41.49926623,193.22,193.16,41.49926623]
[1739374017033,41.49926623,193.22,193.14,5.1774]
[1739374017034,43.56966623,193.2,193.14,41.49926623]
[1739374017207,43.56966623,193.2,193.13,41.49926623]
[1739374017402,41.49926623,193.18,193.11,41.49926623]
[1739374017614,41.49926623,193.18,193.15,0.03]
[1739374017837,41.49926623,193.19,193.15,0.03]
[1739374018036,2.0704,193.2,193.15,0.03]
[1739374018210,2.0702,193.22,193.17,41.49926623]
[1739374018409,2.07,193.24,193.2,41.49926623]
[1739374018733,2.0695,193.28,193.15,1.1168872]
[1739374018945,2.0695,193.28,193.22,41.49926623]
[1739374019315,2.0695,193.28,193.23,41.49926623]
[1739374019631,43.56876623,193.28,193.21,41.49926623]
[1739374019808,2.0695,193.28,193.22,41.49926623]
[1739374020008,2.0695,193.28,193.23,41.49926623]
[1739374020208,41.49926623,193.24,193.15,41.52926623]
[1739374020543,0.12549,193.25,193.15,0.03]
[1739374020544,20.0,193.25,193.15,0.03]
[1739374020713,41.49926623,193.26,193.15,0.03]
[1739374021232,0.12549,193.2,193.15,0.03]
[1739374021432,20.0,193.18,193.15,0.03]
[1739374021635,33.66282853,193.16,193.15,0.03]
[1739374021839,0.12549,193.14,193.1,0.063]
[1739374022025,0.25098,193.18,193.1,0.063]
[1739374022026,20.0,193.18,193.1,0.063]
[1739374022224,41.49926623,193.12,193.1,0.063]
[1739374022531,41.49926623,193.11,193.1,0.063]
[1739374022708,41.49926623,193.15,193.1,0.063]
[1739374022906,6.06,193.21,193.1,0.063]
[1739374023112,0.37647,193.14,193.1,0.063]
[1739374023334,13.41184853,193.13,193.1,0.063]
[1739374023634,7.2474,193.17,193.1,0.063]
[1739374023838,20.0,193.13,193.1,0.063]
[1739374024140,41.49926623,193.11,193.1,0.063]
[1739374024314,55.28758476,193.11,193.1,0.063]
[1739374024513,96.91234099,193.11,193.1,0.0001]
[1739374024714,13.78831853,193.1,193.09,0.0001]
[1739374024913,13.78831853,193.1,193.01,0.03]
[1739374024914,20.0,193.07,193.01,0.03]
[1739374025113,35.48414853,193.02,193.01,0.03]
[1739374025315,35.73512853,193.02,193.01,0.03]
[1739374025748,35.86061853,193.02,193.01,0.03]
[1739374026237,0.12549,193.0,192.95,0.03]
[1739374026447,41.49926623,192.96,192.95,0.03]
[1739374027112,41.49926623,192.98,192.95,0.03]
[1739374027445,2.0725,193.0,192.96,41.49926623]
[1739374027649,2.0725,193.0,192.95,0.03]
[1739374027944,41.49926623,192.96,192.95,0.03]
[1739374028249,2.0725,193.0,192.95,0.03]
[1739374028544,2.0725,193.0,192.95,41.52926623]
[1739374028915,41.49926623,192.99,192.95,0.03]
[1739374029115,41.49926623,192.96,192.95,0.03]
[1739374029358,2.0724,193.01,192.95,0.03]
[1739374029548,41.49926623,193.0,192.95,0.03]
[1739374029723,20.0,192.99,192.95,0.03]
[1739374030521,2.0724,193.01,192.95,0.03]
[1739374030846,2.0724,193.01,192.95,41.52926623]
[1739374031038,2.0724,193.01,192.96,41.49926623]
[1739374031236,2.0723,193.02,192.97,41.49926623]
[1739374031616,2.0723,193.02,192.96,41.49926623]
[1739374031819,43.57156623,193.02,192.95,41.52926623]
[1739374032047,43.57156623,193.02,192.96,41.49926623]
[1739374032048,2.0723,193.02,192.96,41.49926623]
[1739374032220,41.49926623,193.06,192.99,41.49926623]
[1739374032426,43.57076623,193.09,193.02,41.49926623]
[1739374032627,41.49926623,193.08,193.01,41.49926623]
[1739374032949,2.0711,193.13,193.05,41.49926623]
[1739374033254,2.071,193.14,193.08,41.49926623]
[1739374033625,5.1766,193.18,193.11,41.49926623]
[1739374033626,41.49926623,193.18,193.11,41.49926623]
[1739374033937,41.49926623,193.16,193.09,41.49926623]
[1739374034144,41.49926623,193.15,193.08,41.49926623]
[1739374034365,41.49926623,193.19,193.12,41.49926623]
[1739374034944,0.25098,193.18,192.97,7.0057]
[1739374035158,41.49926623,193.12,193.05,41.49926623]
[1739374035324,41.49926623,193.11,193.04,41.49926623]
[1739374035527,41.49926623,193.1,193.03,41.49926623]
[1739374035742,41.49926623,193.11,193.04,41.49926623]
[1739374035941,41.49926623,193.1,193.03,41.49926623]
[1739374036141,41.49926623,193.11,193.04,41.49926623]
[1739374036450,2.0711,193.14,193.08,41.49926623]
[1739374036664,2.0711,193.14,193.01,1.08775379]
[1739374036665,43.57036623,193.14,193.07,41.49926623]
[1739374037070,43.57036623,193.14,193.02,41.49926623]
[1739374037071,20.0,193.12,193.02,41.49926623]
[1739374037244,41.49926623,193.1,193.03,41.49926623]
[1739374037447,2.0713,193.11,193.05,41.49926623]
[1739374037662,2.0713,193.11,193.06,41.49926623]
[1739374037879,43.57056623,193.11,193.05,41.49926623]
[1739374038555,43.57056623,193.11,193.04,41.49926623]
[1739374038961,41.49926623,193.1,193.03,41.49926623]
[1739374039262,2.0713,193.11,193.05,41.49926623]
[1739374039465,41.49926623,193.08,193.02,41.49926623]
[1739374039645,41.49926623,193.08,192.99,1.5222]
[1739374039646,41.49926623,193.08,193.01,41.49926623]
[1739374039847,22.0713,193.11,192.99,6.7035]
[1739374040560,13.66282853,193.1,192.99,1.5222]
[1739374040761,41.49926623,193.03,192.97,41.49926623]
[1739374041154,55.28758476,193.1,192.97,41.49926623]
[1739374041155,41.49926623,193.1,193.02,41.49926623]
[1739374041357,43.57056623,193.11,193.04,41.49926623]
[1739374041557,2.0713,193.11,193.05,41.49926623]
[1739374042253,41.49926623,193.13,193.03,20.0]
[1739374042455,1.5004,193.24,193.12,41.49926623]
[1739374042456,47.84086623,193.21,193.12,41.49926623]
[1739374042660,8.4119,193.21,193.16,41.49926623]
[1739374042970,2.0703,193.21,193.08,2.21260612]
[1739374043172,0.063,193.11,193.1,0.12549]
[1739374043374,2.0699,193.24,193.11,0.12549]
[1739374043585,2.0697,193.26,193.13,0.12549]
[1739374043874,2.0697,193.26,193.15,1.6431]
[1739374044077,2.0697,193.26,193.16,1.086908]
[1739374044265,43.56896623,193.26,193.19,41.49926623]
[1739374044579,43.56876623,193.28,193.21,41.49926623]
[1739374044750,2.0695,193.28,193.22,41.49926623]
[1739374044948,61.49926623,193.28,193.21,41.49926623]
[1739374045172,43.56866623,193.29,193.22,41.49926623]
[1739374045388,2.0694,193.29,193.24,41.49926623]
[1739374045555,2.0696,193.27,193.22,41.49926623]
[1739374045862,43.56896623,193.26,193.19,41.49926623]
[1739374046176,41.49926623,193.24,193.17,41.49926623]
[1739374046382,43.63216623,193.25,193.18,41.49926623]
[1739374046560,43.63216623,193.25,193.19,41.49926623]
[1739374046561,0.063,193.25,193.19,41.49926623]
[1739374046768,0.063,193.25,193.21,41.49926623]
[1739374047075,0.063,193.25,193.16,5.1769]
[1739374047076,2.1328,193.25,193.16,5.1769]
[1739374047247,2.1328,193.25,193.11,13.07109]
[1739374047248,41.49926623,193.21,193.14,46.67666623]
[1739374047451,41.49926623,193.23,193.16,41.49926623]
[1739374047672,41.49926623,193.23,193.14,5.1774]
[1739374047673,2.1328,193.25,193.19,41.49926623]
[1739374047878,0.063,193.25,193.15,1.08704222]
[1739374048047,0.063,193.25,193.17,20.0]
[1739374048251,0.063,193.25,193.16,1.21211808]
[1739374048453,0.063,193.25,193.17,5.1767]
[1739374048655,0.063,193.25,193.13,5.1778]
[1739374048859,41.49926623,193.23,193.16,41.49926623]
[1739374049284,0.063,193.25,193.13,5.1778]
[1739374049285,41.49926623,193.19,193.13,41.49926623]
[1739374049454,41.49926623,193.18,193.11,41.49926623]
[1739374049660,41.49926623,193.23,193.17,41.49926623]
[1739374049881,0.063,193.25,193.12,1.08728035]
[1739374050068,0.063,193.25,193.11,1.08696438]
[1739374050266,41.49926623,193.19,193.09,5.1789]
[1739374050461,20.0,193.22,193.11,5.1783]
[1739374050767,2.0699,193.24,193.2,41.49926623]
[1739374050965,2.0699,193.24,193.12,1.21264046]
[1739374051262,41.49926623,193.23,193.11,5.1783]
[1739374051474,41.49926623,193.22,193.15,41.49926623]
[1739374051774,2.0699,193.24,193.11,5.1783]
[1739374051775,41.49926623,193.23,193.16,41.49926623]
[1739374052171,2.0699,193.24,193.19,41.49926623]